fUST/lending_fUST_20250817
["ID","MTS","AMOUNT","RATE_DAILY","PERIOD"]
[379829661,1755420167666,655.03,0.00020248,30]
[379829665,1755420183387,300.0,0.0001956,2]
[379829666,1755420190608,508.42909943,0.00019463,2]
[379829673,1755420211408,590.010398,0.00018975,2]
[379829675,1755420211805,630.28514604,0.00018976,2]
[379829676,1755420212191,315.14257302,0.00018977,2]
[379829680,1755420242864,-195.0,0.00019561,2]
[379829681,1755420242904,-300.0,0.00019561,2]
[379829682,1755420242935,-300.0,0.00019561,2]
[379829683,1755420242966,-1200.0,0.00019561,2]
[379829684,1755420242995,-340.07065216,0.00019561,2]
[379829685,1755420243182,-500.0,0.00019561,2]
[379829686,1755420243212,-500.0,0.00019561,2]
[379829687,1755420243245,-430.98952482,0.00019561,2]
[379829688,1755420243946,300.0,0.0001956,2]
[379829689,1755420246593,150.0,0.00016905,30]
[379829691,1755420247043,240.37,0.0001771,30]
[379829692,1755420247473,360.55,0.00018515,30]
[379829693,1755420247884,480.74,0.0001932,30]
[379829694,1755420248880,600.92,0.00020125,30]
[379829695,1755420249341,721.1,0.0002093,30]
[379829696,1755420250640,-151.0,0.00019562,2]
[379829697,1755420250664,-151.0,0.00019562,2]
[379829698,1755420250688,-151.0,0.00019562,2]
[379829699,1755420250712,-151.0,0.00019562,2]
[379829700,1755420250736,-151.0,0.00019562,2]
[379829701,1755420250760,-151.0,0.00019562,2]
[379829702,1755420250784,-163.68146274,0.00019562,2]
[379829703,1755420250964,-17842.522448,0.00019562,2]
[379829704,1755420250988,-328.13261209,0.00019562,2]
[379829705,1755420251012,-311.04510732,0.00019563,2]
[379829706,1755420251037,-480.0,0.00019563,2]
[379829707,1755420251060,-480.0,0.00019563,2]
[379829708,1755420251083,-629.24726506,0.00019563,2]
[379829709,1755420251106,-480.0,0.00019563,2]
[379829710,1755420251129,-480.0,0.00019563,2]
[379829711,1755420251154,-474.4819103,0.00019563,2]
[379829712,1755420251180,-480.0,0.00019563,2]
[379829713,1755420251204,-480.0,0.00019563,2]
[379829714,1755420251228,-480.0,0.00019563,2]
[379829715,1755420251254,-480.0,0.00019563,2]
[379829716,1755420251279,-622.87809839,0.00019563,2]
[379829717,1755420251303,-552.17,0.00019563,2]
[379829718,1755420251327,-215.00000069,0.00019563,2]
[379829719,1755420251352,-480.0,0.00019563,2]
[379829720,1755420251376,-480.0,0.00019563,2]
[379829721,1755420251400,-1034.69,0.00019563,2]
[379829722,1755420251424,-4261.14,0.00019563,2]
[379829723,1755420251448,-1115.18,0.00019563,2]
[379829724,1755420251471,-480.0,0.00019563,2]
[379829725,1755420251493,-508.95192112,0.00019563,2]
[379829726,1755420251518,-480.0,0.00019563,2]
[379829727,1755420251542,-724.59,0.00019563,2]
[379829728,1755420251565,-480.0,0.00019563,2]
[379829729,1755420251587,-480.0,0.00019563,2]
[379829730,1755420251610,-480.0,0.00019563,2]
[379829731,1755420251632,-480.0,0.00019563,2]
[379829732,1755420251656,-480.0,0.00019563,2]
[379829733,1755420251679,-480.0,0.00019563,2]
[379829734,1755420251703,-480.0,0.00019563,2]
[379829735,1755420251726,-480.0,0.00019563,2]
[379829736,1755420251747,-480.0,0.00019563,2]
[379829737,1755420251769,-480.0,0.00019563,2]
[379829738,1755420251791,-480.0,0.00019563,2]
[379829739,1755420251815,-480.0,0.00019563,2]
[379829740,1755420251840,-480.0,0.00019563,2]
[379829741,1755420251868,-743.16,0.00019563,2]
[379829742,1755420251892,-480.0,0.00019563,2]
[379829743,1755420251916,-480.0,0.00019563,2]
[379829744,1755420251942,-480.0,0.00019563,2]
[379829745,1755420251967,-1446.26,0.00019563,2]
[379829746,1755420251991,-725.02,0.00019563,2]
[379829747,1755420252015,-480.0,0.00019563,2]
[379829748,1755420252038,-480.0,0.00019563,2]
[379829749,1755420252061,-480.0,0.00019564,2]
[379829750,1755420252085,-480.0,0.00019564,2]
[379829751,1755420252108,-630.89,0.00019564,2]
[379829752,1755420252131,-480.0,0.00019564,2]
[379829753,1755420252164,-480.0,0.00019564,2]
[379829754,1755420252204,-480.0,0.00019564,2]
[379829755,1755420252248,-460.98803298,0.00019564,2]
[379829756,1755420252283,-480.0,0.00019564,2]
[379829757,1755420252307,-480.0,0.00019564,2]
[379829758,1755420252331,-480.0,0.00019564,2]
[379829759,1755420252355,-173.15286793,0.00019564,2]
[379829760,1755420252379,-480.0,0.00019564,2]
[379829761,1755420252403,-480.0,0.00019564,2]
[379829762,1755420252425,-480.0,0.00019564,2]
[379829763,1755420252449,-480.0,0.00019564,2]
[379829764,1755420252470,-480.0,0.00019564,2]
[379829765,1755420252489,-480.0,0.00019564,2]
[379829766,1755420252510,-480.0,0.00019564,2]
[379829767,1755420252529,-480.0,0.00019564,2]
[379829768,1755420252546,-480.0,0.00019564,2]
[379829769,1755420252566,-480.0,0.00019564,2]
[379829770,1755420252590,-480.0,0.00019564,2]
[379829771,1755420252613,-705.83,0.00019564,2]
[379829772,1755420252635,-1000.0,0.00019564,2]
[379829773,1755420252659,-480.0,0.00019564,2]
[379829774,1755420252681,-480.0,0.00019564,2]
[379829775,1755420252704,-617.95,0.00019564,2]
[379829776,1755420252735,-480.0,0.00019564,2]
[379829777,1755420252759,-480.0,0.00019564,2]
[379829778,1755420252792,-480.0,0.00019564,2]
[379829779,1755420252817,-480.0,0.00019564,2]
[379829780,1755420252842,-480.0,0.00019564,2]
[379829781,1755420253054,480.0,0.00019563,2]
[379829782,1755420253111,480.0,0.00019564,2]
[379829784,1755420255195,756.08,0.00019563,2]
[379829786,1755420256024,420.0,0.00019564,2]
[379829787,1755420258170,480.0,0.00019564,2]
[379829788,1755420260076,480.0,0.00019564,2]
[379829789,1755420260752,480.0,0.00019563,2]
[379829791,1755420265735,480.0,0.00019563,2]
[379829792,1755420268621,480.0,0.00019563,2]
[379829794,1755420272496,480.0,0.00019564,2]
[379829795,1755420272706,480.0,0.00019561,2]
[379829797,1755420277180,480.0,0.00019564,2]
[379829798,1755420278133,480.0,0.00019563,2]
[379829799,1755420279245,480.0,0.00019563,2]
[379829800,1755420280716,480.0,0.00019561,2]
[379829801,1755420282455,480.0,0.00019564,2]
[379829803,1755420288587,480.0,0.00019563,2]
[379829804,1755420290760,480.0,0.00019564,2]
[379829806,1755420290842,480.0,0.00019561,2]
[379829807,1755420293465,480.0,0.00019563,2]
[379829808,1755420299561,2019.64,0.00019563,2]
[379829809,1755420301902,480.0,0.00019564,2]
[379829810,1755420308142,572.02,0.00019564,2]
[379829811,1755420308551,17842.522448,0.00019551,2]
[379829812,1755420309420,500.0,0.00019551,2]
[379829813,1755420309553,151.0,0.00019551,2]
[379829814,1755420309854,151.0,0.00019551,2]
[379829815,1755420310079,500.0,0.00019551,2]
[379829816,1755420310307,231.8312939,0.00019551,2]
[379829817,1755420310336,151.0,0.00019551,2]
[379829818,1755420310701,500.0,0.00019551,2]
[379829819,1755420310922,155.17522517,0.00019551,2]
[379829820,1755420311087,2183.31810187,0.00019551,2]
[379829821,1755420311378,500.0,0.00019551,2]
[379829825,1755420312042,500.0,0.00019551,2]
[379829827,1755420312712,500.0,0.00019551,2]
[379829828,1755420312911,480.0,0.00019563,2]
[379829829,1755420313361,500.0,0.00019551,2]
[379829830,1755420314127,500.0,0.00019551,2]
[379829831,1755420314848,1000.0,0.00019551,2]
[379829832,1755420314902,500.0,0.00019551,2]
[379829833,1755420315433,1000.0,0.00019551,2]
[379829834,1755420316089,567.0,0.00019551,2]
[379829835,1755420316138,500.0,0.00019551,2]
[379829836,1755420316951,500.0,0.00019551,2]
[379829837,1755420317476,480.0,0.00019563,2]
[379829838,1755420317710,500.0,0.00019551,2]
[379829839,1755420318385,500.0,0.00019551,2]
[379829841,1755420319059,500.0,0.00019551,2]
[379829842,1755420319786,500.0,0.00019551,2]
[379829843,1755420320498,500.0,0.00019551,2]
[379829844,1755420320847,480.0,0.00019561,2]
[379829845,1755420321188,500.0,0.00019551,2]
[379829846,1755420321904,480.0,0.00019564,2]
[379829847,1755420322174,162.54304105,0.00019472,2]
[379829848,1755420325076,480.0,0.00019563,2]
[379829849,1755420325432,480.0,0.00019564,2]
[379829851,1755420326818,480.0,0.00019563,2]
[379829852,1755420327368,480.0,0.00019564,2]
[379829853,1755420329240,480.0,0.00019563,2]
[379829854,1755420329557,480.0,0.00019563,2]
[379829855,1755420331342,480.0,0.00019561,2]
[379829856,1755420331679,480.0,0.00019563,2]
[379829857,1755420332786,833.22672472,0.000189,2]
[379829858,1755420334662,480.0,0.00019563,2]
[379829859,1755420338169,480.0,0.00019563,2]
[379829860,1755420338198,500.0,0.00019564,2]
[379829862,1755420343058,1152.36,0.00019561,2]
[379829863,1755420344130,480.0,0.00019564,2]
[379829864,1755420344340,480.0,0.00019564,2]
[379829865,1755420349633,480.0,0.00019563,2]
[379829866,1755420349997,480.0,0.00019563,2]
[379829867,1755420350137,480.0,0.00019563,2]
[379829869,1755420360803,480.0,0.00019563,2]
[379829870,1755420360876,440.0,0.00019564,2]
[379829872,1755420364436,480.0,0.00019563,2]
[379829873,1755420364761,604.29925035,0.00019564,2]
[379829874,1755420368965,480.0,0.00019563,2]
[379829878,1755420370677,480.0,0.00019564,2]
[379829879,1755420371554,480.0,0.00019564,2]
[379829880,1755420372658,480.0,0.00019563,2]
[379829881,1755420376905,403.91043668,0.00019563,2]
[379829883,1755420377678,480.0,0.00019563,2]
[379829884,1755420377727,480.0,0.00019563,2]
[379829886,1755420381285,480.0,0.00019564,2]
[379829887,1755420381962,480.0,0.00019563,2]
[379829898,1755420384345,480.0,0.00019563,2]
[379829900,1755420385160,55338.31156485,0.0001948,2]
[379829901,1755420385329,423.70009574,0.00019564,2]
[379829902,1755420387047,480.0,0.00019563,2]
[379829903,1755420387852,480.0,0.00019564,2]
[379829904,1755420388214,444.87546194,0.00019477,2]
[379829905,1755420389202,480.0,0.00019563,2]
[379829906,1755420390245,480.0,0.00019564,2]
[379829907,1755420392474,480.0,0.00019564,2]
[379829908,1755420392949,480.0,0.00019564,2]
[379829909,1755420395700,422.64604278,0.00019564,2]
[379829911,1755420399166,480.0,0.00019563,2]
[379829913,1755420401068,480.0,0.00019563,2]
[379829914,1755420401126,480.0,0.00019564,2]
[379829915,1755420401901,480.0,0.00019563,2]
[379829919,1755420408761,480.0,0.00019563,2]
[379829920,1755420410817,723.69,0.00019561,2]
[379829921,1755420412835,480.0,0.00019563,2]
[379829922,1755420413581,480.0,0.00019563,2]
[379829923,1755420414369,480.0,0.00019564,2]
[379829924,1755420414629,480.0,0.00019563,2]
[379829925,1755420417624,480.0,0.00019564,2]
[379829928,1755420423181,480.0,0.00019563,2]
[379829929,1755420425719,480.0,0.00019564,2]
[379829930,1755420425956,480.0,0.00019563,2]
[379829931,1755420426289,1479.52,0.00019563,2]
[379829933,1755420427802,199.32892455,0.00019561,2]
[379829934,1755420429679,480.0,0.00019561,2]
[379829935,1755420429726,151.15445482,0.00019465,2]
[379829936,1755420429807,480.0,0.00019563,2]
[379829937,1755420430374,480.0,0.00019563,2]
[379829942,1755420437975,542.41177525,0.00019563,2]
[379829944,1755420445996,480.0,0.00019564,2]
[379829945,1755420450092,480.0,0.00019561,2]
[379829947,1755420452906,480.0,0.00019561,2]
[379829948,1755420455267,480.0,0.00019561,2]
[379829949,1755420459220,440.0,0.00019564,2]
[379829950,1755420461030,480.0,0.00019563,2]
[379829951,1755420464324,712.2,0.00019561,2]
[379829952,1755420465457,480.0,0.00019564,2]
[379829954,1755420468770,480.0,0.00019563,2]
[379829955,1755420470190,480.0,0.00019563,2]
[379829956,1755420470552,480.0,0.00019563,2]
[379829957,1755420471214,480.0,0.00019564,2]
[379829958,1755420473331,480.0,0.00019563,2]
[379829960,1755420475722,480.0,0.00019564,2]
[379829961,1755420479255,480.0,0.00019563,2]
[379829962,1755420479708,485.0246964,0.00019563,2]
[379829963,1755420480276,1386.0,0.00019561,2]
[379829965,1755420481672,480.0,0.00019563,2]
[379829966,1755420483062,315.7382619,0.00019563,2]
[379829967,1755420484134,480.0,0.00019563,2]
[379829968,1755420485625,480.0,0.00019563,2]
[379829969,1755420485907,235.1457587,0.00019563,2]
[379829972,1755420491561,480.0,0.00019564,2]
[379829973,1755420492973,480.0,0.00019564,2]
[379829974,1755420494355,480.0,0.00019561,2]
[379829975,1755420494974,480.0,0.00019564,2]
[379829979,1755420507003,239.38561285,0.00019561,2]
[379829980,1755420507375,480.0,0.00019563,2]
[379829981,1755420509350,480.0,0.00019563,2]
[379829982,1755420510098,480.0,0.00019563,2]
[379829983,1755420510459,745.48,0.00019561,2]
[379829985,1755420513397,480.0,0.00019563,2]
[379829986,1755420515987,480.0,0.00019563,2]
[379829987,1755420516777,332.74049455,0.00019563,2]
[379829988,1755420517743,480.0,0.00019563,2]
[379829989,1755420517778,480.0,0.00019563,2]
[379829990,1755420519348,-480.0,0.00019565,2]
[379829991,1755420519377,-480.0,0.00019565,2]
[379829992,1755420519407,-260.0,0.00019565,2]
[379829993,1755420519437,-480.0,0.00019565,2]
[379829994,1755420520123,480.0,0.00019563,2]
[379829995,1755420523386,480.0,0.00019564,2]
[379829997,1755420528482,480.0,0.00019563,2]
[379829998,1755420533249,160.0,0.00019564,2]
[379829999,1755420533270,180.0,0.00019564,2]
[379830000,1755420533790,480.0,0.00019563,2]
[379830002,1755420536541,480.0,0.00019561,2]
[379830003,1755420538937,480.0,0.00019563,2]
[379830004,1755420540768,480.0,0.00019563,2]
[379830005,1755420544956,480.0,0.00019564,2]
[379830009,1755420557917,480.0,0.00019561,2]
[379830010,1755420562964,480.0,0.00019563,2]
[379830011,1755420564560,1000.84,0.00019563,2]
[379830014,1755420569847,459.16,0.00019561,2]
[379830015,1755420569869,20.84,0.00019561,2]
[379830016,1755420570156,407.1294325,0.00019564,2]
[379830018,1755420573572,480.0,0.00019564,2]
[379830020,1755420574071,480.0,0.00019561,2]
[379830021,1755420576101,480.0,0.00019561,2]
[379830024,1755420582364,480.0,0.00019561,2]
[379830025,1755420582477,2652.0305675,0.00019565,2]
[379830026,1755420582500,1988.4794325,0.00019565,2]
[379830027,1755420584130,480.0,0.00019563,2]
[379830028,1755420584745,480.0,0.00019564,2]
[379830029,1755420587057,480.0,0.00019563,2]
[379830030,1755420587568,480.0,0.00019563,2]
[379830031,1755420589824,480.0,0.00019563,2]
[379830032,1755420592250,480.0,0.00019564,2]
[379830033,1755420593301,131.5205675,0.00019561,2]
[379830034,1755420593323,348.4794325,0.00019561,2]
[379830035,1755420600003,480.0,0.00019563,2]
[379830036,1755420600474,586.63106246,0.00019563,2]
[379830037,1755420602187,480.0,0.00019564,2]
[379830038,1755420605231,480.0,0.00019561,2]
[379830039,1755420608435,389.26602925,0.00019476,2]
[379830040,1755420608773,440.0,0.00019564,2]
[379830041,1755420610623,480.0,0.00019563,2]
[379830043,1755420613801,480.0,0.00019564,2]
[379830044,1755420615180,480.0,0.00019564,2]
[379830045,1755420616111,355.62347579,0.00019564,2]
[379830046,1755420616135,124.37652421,0.00019564,2]
[379830047,1755420616570,480.0,0.00019563,2]
[379830048,1755420617044,2264.10087163,0.00019565,2]
[379830049,1755420620046,480.0,0.00019563,2]
[379830050,1755420621428,480.0,0.00019561,2]
[379830051,1755420624263,480.0,0.00019564,2]
[379830052,1755420626202,480.0,0.00019563,2]
[379830055,1755420632308,-898.48,0.00019571,2]
[379830056,1755420632361,-301.52,0.00019571,2]
[379830057,1755420632371,-945.79331951,0.00019572,2]
[379830058,1755420632382,-254.20668049,0.00019572,2]
[379830059,1755420632391,-264.0,0.00019572,2]
[379830060,1755420632401,-300.0,0.00019572,2]
[379830061,1755420632410,-4756.75,0.00019573,2]
[379830062,1755420632419,-480.0,0.00019573,2]
[379830063,1755420632428,-1289.58,0.00019573,2]
[379830064,1755420632438,-480.0,0.00019573,2]
[379830066,1755420632447,-480.0,0.00019573,2]
[379830068,1755420632456,-460.85927949,0.00019573,2]
[379830070,1755420632466,-480.0,0.00019573,2]
[379830072,1755420632476,-480.0,0.00019573,2]
[379830073,1755420632485,-440.0,0.00019573,2]
[379830074,1755420632495,-480.0,0.00019573,2]
[379830075,1755420632504,-694.81,0.00019573,2]
[379830076,1755420632514,-480.0,0.00019573,2]
[379830077,1755420632523,-480.0,0.00019573,2]
[379830078,1755420632532,-480.0,0.00019573,2]
[379830079,1755420632541,-480.0,0.00019573,2]
[379830080,1755420632551,-307.74342932,0.00019573,2]
[379830081,1755420632560,-687.36,0.00019574,2]
[379830082,1755420632569,-3449.7,0.00019574,2]
[379830083,1755420632578,-480.0,0.00019575,2]
[379830084,1755420632588,-480.0,0.00019575,2]
[379830085,1755420632597,-1104.35,0.00019575,2]
[379830086,1755420632606,-480.0,0.00019576,2]
[379830087,1755420632616,-345.16919065,0.00019576,2]
[379830088,1755420632626,-480.0,0.00019576,2]
[379830089,1755420632635,-480.0,0.00019576,2]
[379830090,1755420632645,-480.0,0.00019576,2]
[379830091,1755420632655,-480.0,0.00019576,2]
[379830092,1755420632664,-480.0,0.00019576,2]
[379830093,1755420632674,-480.0,0.00019576,2]
[379830094,1755420632683,-480.0,0.00019576,2]
[379830095,1755420632692,-480.0,0.00019576,2]
[379830096,1755420632701,-480.0,0.00019576,2]
[379830097,1755420632711,-480.0,0.00019576,2]
[379830098,1755420632720,-480.0,0.00019576,2]
[379830099,1755420632729,-546.12802984,0.00019576,2]
[379830100,1755420632738,-480.0,0.00019576,2]
[379830101,1755420632749,-480.0,0.00019576,2]
[379830102,1755420632759,-480.0,0.00019576,2]
[379830103,1755420632770,-480.0,0.00019576,2]
[379830104,1755420632790,-480.0,0.00019576,2]
[379830105,1755420632800,-480.0,0.00019576,2]
[379830106,1755420632809,-480.0,0.00019576,2]
[379830107,1755420632827,-480.0,0.00019576,2]
[379830108,1755420632840,-480.0,0.00019576,2]
[379830109,1755420632849,-480.0,0.00019576,2]
[379830110,1755420632858,-423.48725332,0.00019576,2]
[379830111,1755420632867,-480.0,0.00019576,2]
[379830112,1755420632877,-480.0,0.00019576,2]
[379830113,1755420632886,-480.0,0.00019576,2]
[379830114,1755420632895,-480.0,0.00019576,2]
[379830116,1755420632904,-480.0,0.00019576,2]
[379830118,1755420632913,-480.0,0.00019576,2]
[379830120,1755420632922,-480.0,0.00019576,2]
[379830122,1755420632932,-480.0,0.00019576,2]
[379830124,1755420632941,-149.63196099,0.00019576,2]
[379830128,1755420633094,-2001.36803901,0.00019576,2]
[379830129,1755420633104,-480.0,0.00019576,2]
[379830130,1755420633114,-480.0,0.00019576,2]
[379830131,1755420633124,-480.0,0.00019576,2]
[379830132,1755420633134,-460.0,0.00019576,2]
[379830133,1755420633144,-459.27443585,0.00019576,2]
[379830134,1755420633154,-480.0,0.00019576,2]
[379830135,1755420633165,-480.0,0.00019576,2]
[379830137,1755420633175,-451.40347062,0.00019576,2]
[379830138,1755420633185,-480.0,0.00019576,2]
[379830140,1755420633195,-480.0,0.00019576,2]
[379830142,1755420633205,-596.08281684,0.00019576,2]
[379830143,1755420633215,-480.0,0.00019577,2]
[379830144,1755420633225,-480.0,0.00019577,2]
[379830145,1755420633234,-620.43,0.00019577,2]
[379830147,1755420633244,-480.0,0.00019577,2]
[379830148,1755420633254,-366.49532951,0.00019577,2]
[379830150,1755420633264,-480.0,0.00019577,2]
[379830151,1755420633273,-480.0,0.00019577,2]
[379830152,1755420633283,-480.0,0.00019577,2]
[379830153,1755420633293,-480.0,0.00019577,2]
[379830154,1755420633304,-340.0,0.00019577,2]
[379830155,1755420633315,-308.07087061,0.00019577,2]
[379830156,1755420634342,211.52260416,0.000189,2]
[379830157,1755420634363,343.96187899,0.000189,2]
[379830158,1755420636532,480.0,0.00019563,2]
[379830159,1755420636559,666.0,0.00019178,2]
[379830160,1755420636839,658.72,0.00019565,2]
[379830161,1755420636974,480.0,0.00019561,2]
[379830185,1755420638436,-480.0,0.00019573,2]
[379830187,1755420638446,-1417.87,0.00019576,2]
[379830189,1755420638455,-171.92912939,0.00019577,2]
[379830192,1755420638465,-480.0,0.00019577,2]
[379830193,1755420638474,-480.0,0.00019577,2]
[379830196,1755420638484,-480.0,0.00019577,2]
[379830198,1755420638493,-154.8625366,0.00019577,2]
[379830199,1755420638502,-243.0181486,0.00019577,2]
[379830201,1755420638511,-480.0,0.00019577,2]
[379830203,1755420638521,-229.52144994,0.00019577,2]
[379830264,1755420639068,480.0,0.00019561,2]
[379830581,1755420642824,-250.47855006,0.00019577,2]
[379830582,1755420642834,-480.0,0.00019577,2]
[379830583,1755420642843,-480.0,0.00019577,2]
[379830584,1755420642852,-420.0,0.00019577,2]
[379830585,1755420642862,-420.0,0.00019577,2]
[379830586,1755420642872,-480.0,0.00019577,2]
[379830587,1755420642881,-480.0,0.00019577,2]
[379830588,1755420642890,-480.0,0.00019577,2]
[379830589,1755420642900,-480.0,0.00019577,2]
[379830590,1755420642909,-480.0,0.00019577,2]
[379830591,1755420642918,-983.06,0.00019577,2]
[379830592,1755420642927,-480.0,0.0001958,2]
[379830593,1755420642936,-440.0,0.0001958,2]
[379830594,1755420642945,-480.0,0.0001958,2]
[379830595,1755420642954,-362.41043099,0.0001958,2]
[379830596,1755420642965,-480.0,0.0001958,2]
[379830597,1755420642974,-480.0,0.0001958,2]
[379830598,1755420642983,-480.0,0.0001958,2]
[379830599,1755420642992,-480.0,0.0001958,2]
[379830600,1755420643001,-480.80712027,0.0001958,2]
[379830601,1755420643010,-480.0,0.0001958,2]
[379830602,1755420643020,-480.0,0.0001958,2]
[379830603,1755420643029,-480.0,0.0001958,2]
[379830604,1755420643038,-480.0,0.0001958,2]
[379830605,1755420643047,-480.0,0.0001958,2]
[379830606,1755420643056,-480.0,0.0001958,2]
[379830607,1755420643065,-500.0,0.0001958,2]
[379830608,1755420643075,-480.0,0.0001958,2]
[379830609,1755420643088,-2360.58,0.0001958,2]
[379830610,1755420643098,-480.0,0.0001958,2]
[379830611,1755420643107,-480.0,0.0001958,2]
[379830612,1755420643115,-460.0,0.0001958,2]
[379830613,1755420643124,-480.0,0.0001958,2]
[379830614,1755420643133,-480.0,0.0001958,2]
[379830615,1755420643142,-480.0,0.0001958,2]
[379830616,1755420643151,-433.62589241,0.00019582,2]
[379830617,1755420643160,-219.0,0.00019584,2]
[379830618,1755420643169,-501.40031519,0.000196,2]
[379830619,1755420643178,-267.67942014,0.0001975,2]
[379830620,1755420643188,-247.93,0.00019764,2]
[379830621,1755420643197,-1424.0,0.00019765,2]
[379830622,1755420643206,-219.0,0.00019813,2]
[379830623,1755420643215,-17842.522448,0.00019825,2]
[379830624,1755420643224,-723.69,0.00019835,2]
[379830625,1755420643233,-480.0,0.00019835,2]
[379830626,1755420643241,-480.0,0.00019835,2]
[379830627,1755420643250,-480.0,0.00019835,2]
[379830628,1755420643259,-400.0,0.00019835,2]
[379830629,1755420643268,-712.2,0.00019835,2]
[379830630,1755420643278,-1386.0,0.00019835,2]
[379830631,1755420643288,-480.0,0.00019835,2]
[379830632,1755420643298,-745.48,0.00019835,2]
[379830633,1755420643308,-480.0,0.00019835,2]
[379830634,1755420643317,-480.0,0.00019835,2]
[379830635,1755420643326,-593.05,0.00019835,2]
[379830636,1755420643335,-480.0,0.00019835,2]
[379830637,1755420643344,-450.91281958,0.00019835,2]
[379830638,1755420643353,-601.00523358,0.00019835,2]
[379830639,1755420643362,-480.0,0.00019835,2]
[379830640,1755420643370,-480.0,0.00019835,2]
[379830641,1755420643380,-480.0,0.00019835,2]
[379830642,1755420643389,-480.0,0.00019835,2]
[379830643,1755420643398,-500.0,0.00019836,2]
[379830644,1755420643407,-480.0,0.00019837,2]
[379830645,1755420643416,-480.0,0.00019837,2]
[379830646,1755420643425,-480.0,0.00019837,2]
[379830647,1755420643434,-480.0,0.00019837,2]
[379830648,1755420643444,-480.0,0.00019837,2]
[379830649,1755420643453,-480.0,0.00019837,2]
[379830650,1755420643461,-159.27782974,0.00019837,2]
[379830651,1755420643470,-480.0,0.00019837,2]
[379830652,1755420643479,-400.0,0.00019837,2]
[379830654,1755420643620,-480.0,0.00019837,2]
[379830655,1755420643630,-480.0,0.00019837,2]
[379830656,1755420643639,-480.0,0.00019837,2]
[379830657,1755420643648,-480.0,0.00019837,2]
[379830658,1755420643658,-480.0,0.00019837,2]
[379830659,1755420643668,-480.0,0.00019837,2]
[379830660,1755420643677,-480.0,0.00019837,2]
[379830661,1755420643686,-480.0,0.00019837,2]
[379830662,1755420643697,-480.0,0.00019837,2]
[379830663,1755420643706,-480.0,0.00019837,2]
[379830664,1755420643715,-480.0,0.00019837,2]
[379830665,1755420643724,-480.0,0.00019837,2]
[379830666,1755420643733,-480.0,0.00019837,2]
[379830667,1755420643742,-480.0,0.00019837,2]
[379830668,1755420643751,-480.0,0.00019837,2]
[379830669,1755420643761,-480.0,0.00019837,2]